Cogmind - Beta 12 @@@ ROGUE MODE // 2024.02.17 @ 11:46:36 Player: Dosh Result: Destroyed by G-47 Trooper with Particle Gun Performance ------------- Evolutions (3) 1500 Regions Visited (6) 1200 Robots Destroyed (11) 55 Value Destroyed (217) 217 Prototype IDs (24) 480 Alien Tech Used (0) 0 Bonus (570) 570 TOTAL SCORE: 4022 Bonus ------- Pacifist 270 Aligned with FarCom 300 Cogmind --------- Core Integrity 0/700 Matter 227/300 Energy 99/100 System Corruption 7% Temperature Cool (9) Movement Core (50) Location -7/Factory Parts ------- > --- POWER (1) -------- (None) > --- PROPULSION (2) --- (None) > --- UTILITY (8) ------ Advanced Weight Redist. System Improved Signal Interpreter Transport Network Coupler > --- WEAPON (2) ------- (None) > --- INVENTORY (5) ---- Ion Engine Weight Redist. System Advanced Weight Redist. System Cloak of Protection Advanced Beam Rifle Peak State ------------ > --- POWER ------------ Micro Nuclear Core > --- PROPULSION ------- (None) > --- UTILITY ---------- Advanced Weight Redist. System Improved Signal Interpreter Transport Network Coupler Improved Melee Analysis Suite Improved Utility Shielding > --- WEAPON ----------- Assault Rifle > --- INVENTORY -------- Ion Engine Weight Redist. System Advanced Weight Redist. System Cloak of Protection Advanced Beam Rifle [Rating: 20] Favorites ----------- Power Ion Engine Engine Ion Engine Power Core Micro Nuclear Core Propulsion None Utility Transport Network Coupler Device Advanced Weight Redist. System Processor Transport Network Coupler Protection Core Shielding Weapon Assault Rifle Energy Gun Advanced Beam Rifle Ballistic Gun Assault Rifle Launcher Grenade Launcher Build | -11 -10 -10 -10 -9 -8 -7 ------- Run | Jun Mat Min Exi Min Mat Fac Slots Evolved 6 | . . . . . 4 2 Power . | . . . . . . . Propulsion . | . . . . . . . Utility 6 | . . . . . 4 2 Weapon . | . . . . . . . Parts Attached 21 | 2 1 2 1 . 11 4 Power 3 | 1 . . . . 1 1 Engine 2 | 1 . . . . 1 . Core 1 | . . . . . . 1 Reactor . | . . . . . . . Propulsion . | . . . . . . . Treads . | . . . . . . . Leg . | . . . . . . . Wheel . | . . . . . . . Hover . | . . . . . . . Flight . | . . . . . . . Utility 10 | . 1 1 1 . 4 3 Device 5 | . 1 . 1 . 3 . Storage . | . . . . . . . Processor 3 | . . . . . 1 2 Hackware . | . . . . . . . Protection 2 | . . 1 . . . 1 Artifact . | . . . . . . . Weapon 8 | 1 . 1 . . 6 . Energy Gun 1 | . . . . . 1 . Energy Cannon . | . . . . . . . Ballistic Gun 4 | 1 . . . . 3 . Ballistic Cannon . | . . . . . . . Launcher 3 | . . 1 . . 2 . Special Weapon . | . . . . . . . Impact Weapon . | . . . . . . . Slashing Weapon . | . . . . . . . Piercing Weapon . | . . . . . . . Special Melee Weapon . | . . . . . . . Unidentified Prototypes 1 | . . . . . 1 . Parts Lost 8 | . 1 1 . . 3 3 Power 1 | . . . . . . 1 Propulsion . | . . . . . . . Utility 2 | . . . . . 1 1 Weapon 5 | . 1 1 . . 2 1 Highest Loss Streak 3 | . 1 1 . . 2 3 To Critical Strikes . | . . . . . . . Average Slot Usage (%) 25 | . 22 28 14 14 20 35 Engine 1 | . . . . . 1 4 Device 6 | . 10 14 . . 4 7 Processor 7 | . . . . . 8 14 Protection 4 | . . 13 14 14 . 2 Ballistic Gun 4 | . 12 . . . 5 5 Naked Turns . | . . . . . . . Heaviest Build 10 | 1 2 6 1 1 8 10 Greatest Support 12 | 3 3 3 3 3 12 12 Greatest Overweight (x) 2 | . . 1 . . 2 . Average Overweight (x) . | . . . . . . . Largest Inventory Capacity 5 | 5 5 5 5 5 5 5 Average Capacity 5 | 5 5 5 5 5 5 5 Most Carried 5 | 3 2 3 4 4 5 5 Average Carried 3 | 1 2 2 3 4 4 4 Final Capacity 5 | 5 5 5 5 5 5 5 Final Carried 5 | 2 2 2 4 4 3 5 Class Distribution -------------------- 100% | Mutant Dominant Class ---------------- Mutant | -10/Materials Mutant | -10/Mines Mutant | -10/Exiles Mutant | -9/Mines Mutant | -8/Materials Mutant | -7/Factory Resources | -11 -10 -10 -10 -9 -8 -7 ----------- Run | Jun Mat Min Exi Min Mat Fac Matter Collected 444 | 190 . 86 . . 85 83 Remotely . | . . . . . . . Salvage Created 383 | . . 67 . . 233 83 Parts 20 | . . . . . 18 2 Haulers Intercepted 2 | . . . . . 2 . Recyclers Shooed . | . . . . . . . Parts Field Recycled . | . . . . . . . Retrieved Matter . | . . . . . . . Parts Self-Destructed . | . . . . . . . Prevented . | . . . . . . . Kills | -11 -10 -10 -10 -9 -8 -7 ------- Run | Jun Mat Min Exi Min Mat Fac Combat Hostiles Destroyed 16 | . . 11 . . 5 . AOE 16 | . . 11 . . 5 . Classes Destroyed 8 | . . 1 . . 6 1 Worker 1 | . . . . . 1 . Builder 2 | . . . . . 2 . Hauler 2 | . . . . . 2 . Recycler 1 | . . . . . . 1 Swarmer 1 | . . . . . 1 . Grunt 3 | . . . . . 3 . Sentry 1 | . . . . . 1 . Assembled 11 | . . 11 . . . . Best Kill Streak 11 | . . 11 . . 7 1 Combat Bots Only 11 | . . 11 . . 5 . Max Kills in Single Turn 6 | . . 6 . . 2 1 Gunslinging . | . . . . . . . Exploded 6 | . . 6 . . 2 . Melee . | . . . . . . . Uniques/NPCs Destroyed . | . . . . . . . Combat | -11 -10 -10 -10 -9 -8 -7 -------- Run | Jun Mat Min Exi Min Mat Fac Damage Taken 1739 | . 94 153 . . 545 947 Core 1005 | . 11 62 . . 215 717 Absorbed by Shields . | . . . . . . . Redirected to Shielding 63 | . . 13 . . . 50 Core Remaining (%) 76 | 100 . . . 70 60 . Volleys Fired 36 | . . 4 . . 24 8 Largest 2 | . . 1 . . 2 1 Hottest 53 | . . 33 . . 53 20 Shots Fired 37 | . . 4 . . 25 8 Gun 25 | . . . . . 17 8 Cannon . | . . . . . . . Launcher 12 | . . 4 . . 8 . Special . | . . . . . . . Kinetic 25 | . . . . . 17 8 Thermal . | . . . . . . . Explosive 12 | . . 4 . . 8 . Electromagnetic . | . . . . . . . Robot Hit Streak 4 | . . 1 . . 4 3 Robot Miss Streak 5 | . . 1 . . 5 2 Penetration Max . | . . . . . . . Secondary Targets . | . . . . . . . Shots Hit Robots 16 | . . 2 . . 11 3 Core Hits 48 | . . 19 . . 24 5 Critical Kills . | . . . . . . . Critical Parts Destroyed . | . . . . . . . Critical Strikes . | . . . . . . . Melee Attacks . | . . . . . . . Impact . | . . . . . . . Slashing . | . . . . . . . Piercing . | . . . . . . . Sneak Attacks . | . . . . . . . Combat Hostiles . | . . . . . . . Follow-up Attacks . | . . . . . . . Damage Inflicted 1400 | . . 606 . . 677 117 Guns 179 | . . . . . 134 45 Cannons . | . . . . . . . Explosions 1131 | . . 595 . . 536 . Melee . | . . . . . . . Ramming 90 | . . 11 . . 7 72 Kinetic 179 | . . . . . 134 45 Thermal . | . . . . . . . Explosive 1131 | . . 595 . . 536 . Electromagnetic . | . . . . . . . Impact . | . . . . . . . Slashing . | . . . . . . . Piercing . | . . . . . . . Highest Corruption 7 | . . . . . . 7 Average Corruption 3 | . . . . . . 3 Corruption Purged . | . . . . . . . Corruption Blocked . | . . . . . . . Effects 6 | . . . . . . 6 Matter Fused 2 | . . . . . . 2 Heat Flow Errors 1 | . . . . . . 1 Parts Rejected 1 | . . . . . . 1 Data Loss (minor) 1 | . . . . . . 1 Data Loss (major) 1 | . . . . . . 1 Overload Shots . | . . . . . . . Overflow Damage . | . . . . . . . Projectiles . | . . . . . . . Explosions . | . . . . . . . Melee . | . . . . . . . Knockbacks 2 | . . 1 . . . 1 Impact 2 | . . 1 . . . 1 Kinetic . | . . . . . . . Secondary . | . . . . . . . Self-Inflicted Damage 48 | . . 13 . . 3 32 Shots 1 | . . 1 . . . . Rammed 23 | . . 3 . . 2 18 Targets Rammed 23 | . . 3 . . 2 18 Kicked . | . . . . . . . Crushed . | . . . . . . . Highest Temperature 148 | . . 7 . . . 148 Average Temperature 57 | . . 7 . . . 65 Received Heat Transfer 285 | . 33 9 . . 126 117 Siege Activations . | . . . . . . . Robots Corrupted . | . . . . . . . Combat Hostiles . | . . . . . . . Parts Fried . | . . . . . . . Impact Corruptions . | . . . . . . . Robots Melted . | . . . . . . . Combat Hostiles . | . . . . . . . Parts Melted . | . . . . . . . Heat Transferred . | . . . . . . . Parts Sabotaged . | . . . . . . . Parts Stolen . | . . . . . . . Parts Stripped . | . . . . . . . Power Chain Reactions . | . . . . . . . Missiles Intercepted . | . . . . . . . Alert | -11 -10 -10 -10 -9 -8 -7 ------- Run | Jun Mat Min Exi Min Mat Fac Peak Influence 331 | . 65 66 . . 331 282 Initial 82 | . . 25 . . . 82 Average 128 | . 22 35 . . 192 138 Maximum Alert Level 1 | . . . . . 1 1 Low Security (%) 74 | 100 100 100 . 100 50 83 Level 1 25 | . . . . . 49 16 Level 2 . | . . . . . . . Level 3 . | . . . . . . . Level 4 . | . . . . . . . Level 5 . | . . . . . . . High Security . | . . . . . . . Max Security . | . . . . . . . Squads Dispatched 10 | . . . . . 2 8 Investigation 1 | . . . . . . 1 Extermination 1 | . . . . . . 1 Reinforcement 8 | . . . . . 2 6 Assault . | . . . . . . . Garrison . | . . . . . . . Intercept . | . . . . . . . Searches Triggered . | . . . . . . . Construction Impeded 2 | . . . . . 1 1 Haulers Reinforced 1 | . . . . . . 1 Active Scanning Responses . | . . . . . . . Cargo Convoy Interrupts . | . . . . . . . Stealth | -11 -10 -10 -10 -9 -8 -7 --------- Run | Jun Mat Min Exi Min Mat Fac Distress Signals 7 | . 2 . . . 4 1 Communications Jammed . | . . . . . . . Distress Signals . | . . . . . . . Times Spotted 71 | . 6 16 . . 23 26 Peak Tracking Total 18 | . 6 18 . . 6 11 Tactical Retreats 11 | . 1 . . . 4 6 Traps | -11 -10 -10 -10 -9 -8 -7 ------- Run | Jun Mat Min Exi Min Mat Fac Traps Triggered 3 | . 1 . . . 1 1 Indirectly . | . . . . . . . Trap Hack Attempts . | . . . . . . . Triggered . | . . . . . . . Disarmed . | . . . . . . . Reprogrammed . | . . . . . . . Reused . | . . . . . . . Traps Extracted . | . . . . . . . Installed . | . . . . . . . Triggered . | . . . . . . . Machines | -11 -10 -10 -10 -9 -8 -7 ---------- Run | Jun Mat Min Exi Min Mat Fac Machines Disabled . | . . . . . . . Max in Single Turn . | . . . . . . . Machines Repaired . | . . . . . . . Machines Sabotaged . | . . . . . . . Overloaded Fab Kills . | . . . . . . . Hacking | -11 -10 -10 -10 -9 -8 -7 --------- Run | Jun Mat Min Exi Min Mat Fac Machines Accessed 8 | . 1 . 2 . 2 3 Terminals 5 | . 1 . . . 2 2 Fabricators 1 | . . . . . . 1 Repair Stations . | . . . . . . . Recycling Units . | . . . . . . . Scanalyzers . | . . . . . . . Garrison Access . | . . . . . . . Total Hacks 15 | . 1 . 2 . 5 7 Successful 7 | . 1 . 2 . 2 2 Failed 8 | . . . . . 3 5 Catastrophic 3 | . . . . . 1 2 Database Lockouts . | . . . . . . . Manual 7 | . 1 . 1 . 5 . Terminals 11 | . 1 . . . 5 5 Fabricators 2 | . . . . . . 2 Repair Stations . | . . . . . . . Recycling Units . | . . . . . . . Scanalyzers . | . . . . . . . Garrison Access . | . . . . . . . Terminal Hacks 5 | . 1 . 2 . 1 1 Record 2 | . . . 1 . . 1 Transport Status 2 | . 1 . . . 1 . EX-Prototype ID Bank 1 | . . . 1 . . . Fabricator Hacks 1 | . . . . . . 1 Network Status 1 | . . . . . . 1 Repair Station Hacks . | . . . . . . . Recycling Unit Hacks . | . . . . . . . Scanalyzer . | . . . . . . . Garrison Access Hacks . | . . . . . . . Unauthorized Hacks 1 | . . . . . 1 . Terminals 1 | . . . . . 1 . Botnet 1 | . . . . . 1 . Fabricators . | . . . . . . . Repair Stations . | . . . . . . . Recycling Units . | . . . . . . . Scanalyzers . | . . . . . . . Garrison Access . | . . . . . . . Data Cores Recovered . | . . . . . . . Used . | . . . . . . . Hacking Detections 5 | . 1 . . . 1 3 Full Trace Events 2 | . . . . . 1 1 Feedback Events . | . . . . . . . Feedback Blocked . | . . . . . . . Robot Schematics Acquired . | . . . . . . . Robots Built . | . . . . . . . Authchips . | . . . . . . . Time . | . . . . . . . Total Robot Build Rating . | . . . . . . . Part Schematics Acquired . | . . . . . . . Parts Built . | . . . . . . . Authchips . | . . . . . . . Time . | . . . . . . . Total Part Build Rating . | . . . . . . . Parts Repaired . | . . . . . . . Time . | . . . . . . . Parts Recycled . | . . . . . . . Recycled Matter . | . . . . . . . Retrieved Matter . | . . . . . . . Retrieved Components . | . . . . . . . Parts Scanalyzed . | . . . . . . . Part Schematics Acquired . | . . . . . . . Parts Damaged . | . . . . . . . Bothacking | -11 -10 -10 -10 -9 -8 -7 ------------ Run | Jun Mat Min Exi Min Mat Fac Used RIF Installer . | . . . . . . . Robots Hacked . | . . . . . . . Non-combat . | . . . . . . . Combat . | . . . . . . . Robot Hacks Applied . | . . . . . . . Relay Couplers Released . | . . . . . . . Fabnet Peak Effective % . | . . . . . . . Robots Rewired . | . . . . . . . Allies Hacked . | . . . . . . . Hacks Repelled . | . . . . . . . Allies | -11 -10 -10 -10 -9 -8 -7 -------- Run | Jun Mat Min Exi Min Mat Fac Total Allies 4 | . . 4 . . . . Largest Group 4 | . . 4 . . . . Highest-Rated Group 71 | . . 71 . . . . Highest-Rated Ally 31 | . . 31 . . . . Total Orders . | . . . . . . . Ally Attacks 12 | . . 12 . . . . Total Damage 179 | . . 179 . . . . Kills . | . . . . . . . Allies Corrupted . | . . . . . . . Allies Melted . | . . . . . . . Intel | -11 -10 -10 -10 -9 -8 -7 ------- Run | Jun Mat Min Exi Min Mat Fac Robot Analysis Total . | . . . . . . . Derelict Logs Recovered 2 | . . 2 . . . . Drone Launches . | . . . . . . . Drone Recoveries . | . . . . . . . Exploration | -11 -10 -10 -10 -9 -8 -7 ------------- Run | Jun Mat Min Exi Min Mat Fac Turns Passed 1400 | 27 81 233 128 20 506 405 Spaces Moved 2092 | 43 151 397 251 39 524 687 Core 2092 | 43 151 397 251 39 524 687 Treads . | . . . . . . . Legs . | . . . . . . . Wheels . | . . . . . . . Hover . | . . . . . . . Flight . | . . . . . . . Fastest Speed 50 | 50 50 50 50 50 50 50 Average Speed 52 | 50 50 50 50 50 61 50 Slowest Speed 150 | 50 50 100 50 50 150 50 Overloaded Moves . | . . . . . . . Propulsion Burnouts . | . . . . . . . Robots Hopped . | . . . . . . . Cave-ins Triggered . | . . . . . . . Exploration Rate (%) 37 | 3 44 78 65 11 37 25 Regions Visited 6 Branch Regions 3 Pre-discovered Areas 2 | . . . 1 1 . . Known Exits Taken 1 | . . . . . 1 . Unknown Exits Taken 5 | 1 1 1 1 1 . . Scrap Searched 3 | . . 2 . 1 . . Spaces Dug 4 | . . . . . 4 . Terrain Destroyed 56 | . . 31 . . 25 . Melee . | . . . . . . . Projectile . | . . . . . . . AOE 56 | . . 31 . . 25 . Terrain Rammed . | . . . . . . . Walls Destroyed . | . . . . . . . Machines Disabled . | . . . . . . . Actions | -11 -10 -10 -10 -9 -8 -7 --------- Run | Jun Mat Min Exi Min Mat Fac Total 2335 | 47 155 422 253 38 681 739 Wait 156 | . 4 16 . . 116 20 Move 2086 | 42 150 396 250 38 523 687 Hop . | . . . . . . . Pick Up 5 | 2 . 1 . . 1 1 Fast Attach 13 | 1 1 1 1 . 7 2 Attach 5 | 1 . 1 . . 2 1 Detach 6 | 1 . . 2 . 2 1 Swap 3 | . . . . . 2 1 Drop 2 | . . . . . 2 . Fire 36 | . . 4 . . 24 8 Melee . | . . . . . . . Ram 23 | . . 3 . . 2 18 Kick . | . . . . . . . Crush . | . . . . . . . Escape Stasis . | . . . . . . . Rewire . | . . . . . . . Trap . | . . . . . . . Miscellaneous . | . . . . . . . Route ------- -11/Junkyard -10/Materials (discovered 3 exits: [*Mat] / [*Min x2]) -10/Mines (discovered 3 exits: [*Mat x2] / *Exi) -10/Exiles (discovered 2 exits: [*Min x2]) -9/Mines -8/Materials -7/Factory History --------- Turn | Location | Event 13 | -11/Junkyard | Discovered new exit (range 15) 28 | -11/Junkyard | Entered Materials 28 | -10/Materials | Discovered new exit (range 8) 80 | -10/Materials | Discovered new exit (range 16) 102 | -10/Materials | Discovered new exit (range 15) 109 | -10/Materials | Entered Mines 130 | -10/Mines | Received a Mining Laser from a helpful Derelict 134 | -10/Mines | Discovered new exit (range 9) 157 | -10/Mines | Discovered new exit (range 7) 190 | -10/Mines | Received a Rocket Launcher from a helpful Derelict 217 | -10/Mines | Assisted by bots powering up and referring to "LRC-V3" 261 | -10/Mines | Assembled infested the area 278 | -10/Mines | Met 8R-AWN 295 | -10/Mines | Destroyed 11 combat bots 310 | -10/Mines | Build established: Mutant 311 | -10/Mines | Learned Materials non-interactive machine intel 323 | -10/Mines | Learned location of 1 exit from Materials 340 | -10/Mines | Discovered new exit (range 5) 342 | -10/Mines | Entered Exiles 351 | -10/Exiles | Discovered new exit (range 15) 356 | -10/Exiles | Welcomed by 8R-AWN 371 | -10/Exiles | Met EX-HEX 385 | -10/Exiles | Met EX-BIN 392 | -10/Exiles | Aligned with FarCom system 393 | -10/Exiles | Given EX-Vault access code 404 | -10/Exiles | Opened EX-Vault 408 | -10/Exiles | Found Cloak of Protection 420 | -10/Exiles | Warned to stay clear of 0b10 Research branches 435 | -10/Exiles | Met EX-DEC 439 | -10/Exiles | Learned location of Zion (-6) 466 | -10/Exiles | Discovered new exit (range 10) 470 | -10/Exiles | Left Exiles lab with Cloak of Protection 470 | -10/Exiles | Entered Mines 473 | -9/Mines | Discovered new exit (range 12) 478 | -9/Mines | Learned location of Storage (-7) 490 | -9/Mines | Entered Materials 490 | -8/Materials | Evolved 4 slots: Utility x4 491 | -8/Materials | Identified exit to Factory 492 | -8/Materials | Loaded intel: 58 non-interactive machine locations 996 | -8/Materials | Entered Factory 996 | -7/Factory | Evolved 2 slots: Utility x2 1329 | -7/Factory | Core integrity fell below 50% 1357 | -7/Factory | Lost 3 parts (1p1u1w) 1383 | -7/Factory | Core integrity fell below 20% 1401 | -7/Factory | Destroyed by G-47 Trooper with Particle Gun Last Messages --------------- 01374_ ALERT: Construction progress impeded, dispatching reinforcements to local area. 01376_ Slammed into U-05 Engineer. 01383_ Slammed into S-27 Virus. 01385_ Slammed into P-60 Hacker. 01385_ Destabilizing: System corrupted (+2). 01386_ Slammed into P-60 Hacker. 01386_ Destabilizing: Core damaged (-35). 01387_ Slammed into P-60 Hacker. 01387_ Destabilizing: System interference. 01387_ Transport Network Coupler temporarily disabled. 01387_ Imp. Signal Interpreter temporarily disabled. 01388_ Slammed into G-47 Trooper. 01388_ Critical hit (Burn: +37). 01389_ Slammed into G-47 Trooper. 01392_ U-05 Engineer lays Concrete. 01400_ ALERT: Suspicious intruders detected, dispatching Cutter reinforcements to area. 01400_ K-01 Serf collects debris. 01400_ U-05 Engineer lays Concrete. Map ----- +----------------------------------------------------+ | ??????# !!#??????????# ????# #?????? | | ??????# ! #??????????# ##### #?????? | | ??????#####/#####??????????# # #?????? | | ??????????# #??????????????# # #?????? | | ??????????# #??????????????# # #?????? | | ??????????# #??????????????+ + !#?????? | | ??????????# #??????????????# # #?????? | | ??????????# #??????????????# # #?????? | | ??????????# ################ ###############?? | | ??????????# != #?? | | ??????????#### != #?? | | ?????????????# /% #?? | | ?????????????#gp %%% """ /= #?? | | ?????????????# g %%%% %"" / #?? | | ?????????????###g#### "%% ^ %"" #?? | | ??????????######+#### % % #?? | | ??????????# # "" % %%% """ """ #?? | | ??????????# """" # "Y % "% """ """ #?? | | ??????????# """" # """ %%% %"% """ """ #?? | | ??????????# """" + #?? | | ??????????# """" # ! #?? | | ??????????# # ######################?? | | ??????????# [ # #??????????????????????? | | ??????????# # #??????????????????????? | | ??????????###########g #??????????????????????? | | ????????????????????# @#??????????????????????? | | ????????????????????# #??????????????????????? | | ?????????h??????????# #??????????????????????? | | ????????????????????#g #??????????????????????? | | ????????????????????#g #??????????????????????? | | ??????????????????? a ??????????????????????? | | ?????????????????? ??????????????????????? | | ?????????H??????? ?????????????????????? | | ???????????????? ?????????????????????? | | ??????????????? ????????????????????? | | ??????????????###+#####+####?????????????????????? | | ?????????????????????????????????????????????????? | | ?????????????????????????????????????????????????? | | ?????????????????????????????????????????????????? | | ?????????????????????????????????????????????????? | | ???????????????????c?????????????????????????????? | | ???????????????????c?????????????????????????????? | | ?????????????????????????????????????????????????? | | ?????????????????????????????????????????????????? | | ?????????????????????????????????????????????????? | | ?????????????????????????????????????????????????? | | ?????????????????????????????????????????????????? | | ?????????????????????????????????????????????????? | | ?????????????????????????????????????????????????? | | ?????????????????????????????????????????????????? | +----------------------------------------------------+ Best States ------------- Heat Dissipation 34 Energy Generation 15 Energy Capacity 250 Matter Stores 300 Matter Capacity 300 Sight Range 16 Robot Scan Range 14 Terrain Scan Density 10 Additional Mass Support 9 Core Shielding 20 Utility Shielding 66 Evasion (%) 50 Melee Accuracy 6 Item Schematics ----------------- None Robot Schematics ------------------ None Fabricated ------------ Nothing Alien Tech Used ----------------- None Achievements -------------- None Challenges ------------ None Game ------ Seed WarpMetafieldCycler Manual? 0 Play Time 00:17:22 Cumulative 212.2 hours Start 2024.02.17 @ 11:33:24 End 2024.02.17 @ 11:46:36 Sessions 1 Manual Loads 0 Difficulty Rogue Special Mode None Game No. 162 Rogue 162 Adventurer 0 Explorer 0 Win Type - Total 7 Types 4/0/1/1/0/0/0/1/0 Lore% 68 Gallery% 74 Achievement% 64 Wizard Run 0 Options --------- ASCII 0 Keyboard 1 Movement Numpad Keybinds 0 Fullscreen 2 Font 18/SmallcapsGlow Map View 76x50 Tactical HUD 1 Map Filters NONE Filters NONE Steam 1 RUN: 3a93a2c6-dc82-459f-be90-dcf7e5987584